[Event "WYCC U14 Girls 2019"]
[Site "Mumbai"]
[Date "2019.10.06"]
[Round "6.6"]
[White "Sulyok, Eszter"]
[Black "Poliakova, Varvara"]
[Result "1-0"]
[ECO "A10"]
[WhiteElo "1893"]
[BlackElo "2042"]
[Annotator "NA"]
[PlyCount "83"]
[EventDate "2019.10.02"]
[EventType "swiss"]
[EventCountry "IND"]
[SourceTitle "playchess.com"]
[Source "ChessBase"]
[SourceQuality "1"]
[TimeControl "40/5400+30:1800+30"]

1. c4 {[%emt 0:00:00]} f5 {[%emt 0:00:00]} 2. e3 {[%emt 0:00:00]} Nf6 {[%emt 0:00:00]} 3. d4 {[%emt 0:00:35]} g6 {[%emt 0:00:19]} (3... e6 4. Nc3 b6 5. Bd3 Bb7 6. f3 c5 7. Nge2 Nc6 8. O-O Bd6 9. dxc5 Bxc5 10. Na4 Be7 11. b3 Nb4 12. Bb2 O-O 13. Qd2 d5 14. Rfd1 Nxd3 15. Qxd3 dxc4 16. Qxc4 {½-½ (30) Del Rio de Angelis,S (2525)-Moskalenko,V (2504) Linares 2018}) 4. b3 {[%emt 0:00:57]} Bg7 {[%emt 0:00:18]} 5. Bb2 {[%emt 0:00:42]} d6 {[%emt 0:01:13]} 6. Nf3 {[%emt 0:01:05] A84: Dutch Defence: 2 c4 Miscellaneous} O-O {[%emt 0:01:14]} 7. Nc3 {[%emt 0:05:07]} Nc6 {[%emt 0:03:48]} 8. d5 {[%emt 0:03:32]} Ne5 {[%emt 0:00:14]} 9. Be2 {[%emt 0:02:09]} Nf7 $146 {[%emt 0:01:31]} ({Predecessor:} 9... a6 10. O-O h6 11. Qc2 Qe8 12. Nd4 Qf7 13. h3 c5 14. dxc6 Nxc6 15. Nxc6 bxc6 {½-½ (63) Schluenss,F (1644)-Krieger,H (2231) Germany 2002}) 10. Qc2 {[%emt 0:09:17]} e5 {[%emt 0:01:39]} 11. dxe6 {[%emt 0:00:31]} Bxe6 {[%emt 0:00:23]} 12. Nd4 {[%emt 0:06:09]} Bd7 {[%emt 0:02:05]} 13. h4 {[%emt 0:02:00]} Ng4 {[%emt 0:06:05]} 14. Bxg4 {[%emt 0:06:10]} fxg4 {[%emt 0:00:10]} 15. O-O-O {[%emt 0:01:39]} Ne5 {[%emt 0:09:56]} 16. Ne4 {[%emt 0:00:00]} Bf5 {[%emt 0:00:00]} 17. Nxf5 {[%emt 0:00:00]} gxf5 {[%emt 0:00:00]} 18. Ng3 {[%emt 0:00:00]} Qd7 {[%emt 0:17:41]} 19. Nh5 {[%emt 0:15:19]} Bh8 {[%emt 0:00:07]} 20. f4 {[%emt 0:09:38]} Ng6 {[%emt 0:01:21]} 21. Bxh8 {[%emt 0:00:18]} Nxh8 {[%emt 0:00:10]} 22. Qc3 {[%emt 0:02:32]} Qf7 {[%emt 0:00:15]} 23. Ng3 {[%emt 0:00:06]} Rae8 {[%emt 0:01:22]} 24. Rd5 {[%emt 0:04:01]} Qg7 {[%emt 0:14:53]} 25. Qxg7+ {[%emt 0:00:55]} Kxg7 {[%emt 0:00:01]} 26. Nxf5+ {[%emt 0:00:17]} Kf6 {[%emt 0:00:13]} 27. Nh6 {[%emt 0:00:19]} Kg6 {[%emt 0:01:02]} 28. Nxg4 $18 {[%emt 0:00:12]} Nf7 {[%emt 0:01:51]} 29. f5+ {[%emt 0:02:26]} Kg7 {[%emt 0:00:07]} 30. f6+ {[%emt 0:01:38]} Kh8 {[%emt 0:00:20]} 31. h5 Rg8 32. Rh4 c5 33. Rf5 Re4 34. Rf4 Rxf4 35. exf4 Re8 36. Kd2 Re6 37. Rh3 Kg8 38. Re3 Nd8 39. Rxe6 Nxe6 40. Nh6+ Kf8 41. Ke3 Nd4 42. g4 1-0

[Event "WYCC U14 Girls 2019"]
[Site "Mumbai"]
[Date "2019.10.06"]
[Round "6.7"]
[White "Ince, Safiye Oyku"]
[Black "Kamalidenova, Meruert"]
[Result "1-0"]
[ECO "B50"]
[WhiteElo "1840"]
[BlackElo "2025"]
[Annotator "NA"]
[PlyCount "61"]
[EventDate "2019.10.02"]
[EventType "swiss"]
[EventCountry "IND"]
[SourceTitle "playchess.com"]
[Source "ChessBase"]
[SourceQuality "1"]
[TimeControl "40/5400+30:1800+30"]

1. e4 c5 2. Nf3 d6 3. c3 Nf6 4. Bd3 Bd7 (4... Nc6 5. Bc2 Bg4 6. d3 e6 7. h3 Bh5 8. Bf4 d5 9. g4 Bg6 10. Nbd2 Bd6 11. e5 Bc7 12. Qe2 Nd7 13. O-O-O b5 14. d4 Bxc2 15. Kxc2 c4 {0-1 (32) Jobava,B (2705)-Navara,D (2726) Heraklio 2017}) 5. O-O Bc6 6. Re1 {B50: Sicilian: 2...d6, Miscellaneous} Nbd7 7. Bc2 e6 8. d4 Be7 9. a4 $146 ({Predecessor:} 9. Nbd2 h6 10. e5 dxe5 11. dxe5 Nd5 12. Ne4 {1-0 (68) Heinz,A (2244)-Degtiarev,E (2284) Willingen 2004}) 9... O-O 10. e5 dxe5 11. dxe5 Nd5 12. Qd3 g6 13. Bh6 Qc7 14. Nbd2 Rfd8 15. Qc4 a6 16. h4 Nf8 17. h5 $16 (17. a5 $18 {is more deadly.}) 17... Nb6 18. Qe2 Nbd7 19. Rad1 b5 20. Bg5 Bxg5 21. Nxg5 Rdb8 22. Qe3 bxa4 23. Rb1 $2 (23. Nc4 $18 {is the precise move to win.}) 23... Ra7 24. hxg6 hxg6 25. Nc4 Nb6 26. Nd6 Be8 27. Nge4 Kg7 28. Nf6 Bc6 29. Ng4 f5 30. Qh6+ Kg8 31. Nf6# 1-0

[Event "WYCC U14 Girls 2019"]
[Site "Mumbai"]
[Date "2019.10.06"]
[Round "6.8"]
[White "Obada, Ema"]
[Black "De Rycke, Tyani"]
[Result "1/2-1/2"]
[ECO "B40"]
[WhiteElo "1987"]
[BlackElo "1891"]
[Annotator "NA"]
[PlyCount "64"]
[EventDate "2019.10.02"]
[EventType "swiss"]
[EventCountry "IND"]
[SourceTitle "playchess.com"]
[Source "ChessBase"]
[SourceQuality "1"]
[TimeControl "40/5400+30:1800+30"]

1. e4 {[%emt 0:00:00]} c5 {[%emt 0:00:00]} 2. Nf3 {[%emt 0:00:00]} e6 {[%emt 0:00:00]} 3. d4 {[%emt 0:00:00]} cxd4 {[%emt 0:00:00]} 4. Nxd4 {[%emt 0:00:00]} Nf6 {[%emt 0:00:00]} 5. Nc3 {[%emt 0:00:00]} Nc6 {[%emt 0:00:00]} 6. Ndb5 {[%emt 0:00:00]} Bb4 {[%emt 0:00:14]} 7. Bf4 {[%emt 0:00:05]} e5 {[%emt 0:00:47]} 8. Bg5 {[%emt 0:00:18]} O-O {[%emt 0:01:17]} 9. a3 {[%emt 0:01:05]} Be7 {[%emt 0:00:59]} 10. Bxf6 {[%emt 0:07:01]} Bxf6 {[%emt 0:00:13]} 11. Bc4 {[%emt 0:02:21]} Be7 {[%emt 0:04:14]} 12. Nd5 {[%emt 0:04:55]} a6 {[%emt 0:03:17]} 13. Nbc3 {[%emt 0:04:36]} Bc5 {[%emt 0:04:18]} 14. O-O {[%emt 0:02:27]} d6 {[%emt 0:01:18]} 15. Qd3 {[%emt 0:05:04]} Kh8 {[%emt 0:02:18]} 16. Ne3 {[%emt 0:03:46]} Bxe3 {[%emt 0:03:59]} 17. fxe3 {[%emt 0:00:48]} Be6 {[%emt 0:00:38]} 18. Rad1 {[%emt 0:15:21]} Bxc4 {[%emt 0:30:01]} 19. Qxc4 {[%emt 0:00:49]} Kg8 {[%emt 0:01:05]} 20. Rf3 {[%emt 0:08:42]} Rc8 {[%emt 0:03:58]} 21. Qd5 {[%emt 0:13:22]} Qa5 {[%emt 0:05:15]} 22. Qb3 {[%emt 0:08:45]} b5 {[%emt 0:07:39]} 23. Rxd6 {[%emt 0:01:19]} Qc7 {[%emt 0:07:15]} 24. Qd5 {[%emt 0:00:59]} Rfd8 {[%emt 0:01:45]} 25. Rxd8+ {[%emt 0:00:17]} Rxd8 {[%emt 0:00:12]} 26. Qc5 {[%emt 0:00:16]} Qd6 27. Qxd6 Rxd6 28. Rf1 Na5 29. Nd5 Nc4 30. h3 Nd2 31. Rd1 Nxe4 32. c4 Kf8 1/2-1/2

[Event "WYCC U14 Girls 2019"]
[Site "Mumbai"]
[Date "2019.10.06"]
[Round "6.9"]
[White "Pavalachandran, Ashvini"]
[Black "Hakobyan, Astghik"]
[Result "0-1"]
[ECO "E32"]
[WhiteElo "1678"]
[BlackElo "1978"]
[Annotator "NA"]
[PlyCount "166"]
[EventDate "2019.10.02"]
[EventType "swiss"]
[EventCountry "IND"]
[SourceTitle "playchess.com"]
[Source "ChessBase"]
[SourceQuality "1"]
[TimeControl "40/5400+30:1800+30"]

1. d4 {[%emt 0:00:00]} Nf6 {[%emt 0:00:00]} 2. c4 {[%emt 0:00:00]} e6 {[%emt 0:00:00]} 3. Nc3 {[%emt 0:00:00]} Bb4 {[%emt 0:00:07]} 4. Qc2 {[%emt 0:00:17]} b6 {[%emt 0:01:11]} 5. a3 {[%emt 0:01:48]} Bxc3+ {[%emt 0:00:06]} 6. Qxc3 {[%emt 0:00:06]} Bb7 {[%emt 0:00:07]} 7. Nf3 {[%emt 0:01:47]} c5 {[%emt 0:01:50]} 8. b4 {[%emt 0:06:58]} Ne4 {[%emt 0:05:17]} 9. Qc2 {[%emt 0:01:53]} cxd4 {[%emt 0:01:56]} 10. Bb2 {[%emt 0:00:28]} O-O {[%emt 0:04:27]} 11. Bxd4 {[%emt 0:04:52]} d6 {[%emt 0:02:31]} 12. g3 {[%emt 0:09:00]} e5 {[%emt 0:08:24]} 13. Bb2 {[%emt 0:00:43]} Nd7 {[%emt 0:08:27]} 14. Bg2 {[%emt 0:04:25]} f5 {[%emt 0:01:37]} 15. O-O {[%emt 0:09:56]} Rc8 {[%emt 0:02:51]} 16. Qb3 {[%emt 0:06:07]} Kh8 {[%emt 0:00:07]} 17. Rfd1 {[%emt 0:03:07]} Qe7 {[%emt 0:05:37]} 18. Nd2 {[%emt 0:05:12]} Ndf6 {[%emt 0:05:22]} 19. Nxe4 {[%emt 0:10:18]} fxe4 {[%emt 0:04:11]} 20. h3 {[%emt 0:06:36]} Qe6 {[%emt 0:03:48]} 21. Rac1 {[%emt 0:03:48]} b5 {[%emt 0:00:54]} 22. Qe3 {[%emt 0:01:13]} bxc4 {[%emt 0:05:15]} 23. Qxa7 {[%emt 0:03:35]} Qe7 {[%emt 0:02:42]} 24. Qa4 {[%emt 0:06:48]} e3 {[%emt 0:03:19]} 25. f3 {[%emt 0:02:30]} Nh5 {[%emt 0:02:18]} 26. Qa7 Nxg3 27. Qxe3 Nf5 28. Qd2 d5 29. e4 dxe4 30. fxe4 Nh4 31. Qe2 Qg5 32. Rc3 Nxg2 33. Qxg2 Qxg2+ 34. Kxg2 Bxe4+ 35. Kg3 Bd3 36. Rdxd3 cxd3 37. Rxd3 Rce8 38. b5 Rf7 39. Bxe5 Rf5 40. Bc3 Rxb5 41. Bb4 Rbe5 42. Kf3 h5 43. Rc3 Kh7 44. Rd3 g5 45. Rd7+ Kg6 46. Rd3 Rf5+ 47. Kg2 Re2+ 48. Kg1 Ref2 49. Rd6+ Rf6 50. Rxf6+ Rxf6 51. Kg2 Kf5 52. a4 Rc6 53. a5 Rc2+ 54. Kf3 Ra2 55. Be1 h4 56. Bb4 Rh2 57. a6 Ra2 58. Bc5 Rxa6 59. Bb4 Rb6 60. Bc5 Rb3+ 61. Be3 Ra3 62. Kf2 Ra2+ 63. Kg1 Re2 64. Bc5 Kf4 65. Bd6+ Kf3 66. Bc7 Rc2 67. Bd6 Rc6 68. Bb8 Rc4 69. Bd6 Rf4 70. Kh2 Rf6 71. Be5 Re6 72. Bc7 g4 73. hxg4 Kxg4 74. Kg2 Re2+ 75. Kf1 Kf3 76. Kg1 Rc2 77. Bd6 Kg4 78. Bh2 Kh3 79. Be5 Rg2+ 80. Kf1 Rg3 81. Bxg3 hxg3 82. Kg1 g2 83. Kf2 Kh2 0-1

[Event "WYCC U14 Girls 2019"]
[Site "Mumbai"]
[Date "2019.10.06"]
[Round "6.10"]
[White "Wikar, Martyna"]
[Black "Bhagyashree Patil"]
[Result "*"]
[ECO "C50"]
[WhiteElo "1969"]
[BlackElo "1802"]
[Annotator "NA"]
[PlyCount "60"]
[EventDate "2019.10.02"]
[EventType "swiss"]
[EventCountry "IND"]
[SourceTitle "playchess.com"]
[Source "ChessBase"]
[SourceQuality "1"]
[TimeControl "40/5400+30:1800+30"]

1. e4 {[%emt 0:00:00]} e5 {[%emt 0:00:00]} 2. Nf3 {[%emt 0:00:00]} Nc6 {[%emt 0:00:00]} 3. Bc4 {[%emt 0:00:00]} Be7 {[%emt 0:00:05]} 4. d3 {[%emt 0:00:06]} d6 {[%emt 0:00:40]} 5. c3 {[%emt 0:00:09]} Nf6 {[%emt 0:00:07]} 6. Bb3 {[%emt 0:00:22]} Be6 {[%emt 0:00:42]} 7. Nbd2 {[%emt 0:01:01]} Qd7 {[%emt 0:00:58]} 8. d4 {[%emt 0:02:30]} Bxb3 {[%emt 0:11:01]} 9. Qxb3 {[%emt 0:01:35]} exd4 {[%emt 0:04:19]} 10. cxd4 {[%emt 0:00:55]} O-O {[%emt 0:00:53]} 11. O-O {[%emt 0:03:54]} a5 {[%emt 0:04:39]} 12. Re1 {[%emt 0:05:16]} a4 {[%emt 0:01:08]} 13. Qc3 {[%emt 0:01:26]} b5 {[%emt 0:05:09]} 14. d5 {[%emt 0:01:09]} Na5 {[%emt 0:01:52]} 15. Nd4 {[%emt 0:02:55]} Rfc8 {[%emt 0:05:37]} 16. Qg3 {[%emt 0:07:51]} Bf8 {[%emt 0:07:02]} 17. Nf1 {[%emt 0:04:55]} c5 {[%emt 0:09:43]} 18. Nf5 {[%emt 0:06:19]} Kh8 {[%emt 0:01:20]} 19. Qh4 {[%emt 0:04:01]} Nc4 {[%emt 0:07:46]} 20. N1g3 {[%emt 0:04:44]} Ne5 {[%emt 0:00:46]} 21. Bg5 {[%emt 0:02:28]} Ng8 {[%emt 0:07:48]} 22. f4 {[%emt 0:13:07]} Ng6 {[%emt 0:00:39]} 23. Qg4 {[%emt 0:03:35]} c4 {[%emt 0:07:42]} 24. Kh1 a3 {[%emt 0:02:27]} 25. bxa3 {[%emt 0:03:08]} Rc7 {[%emt 0:00:00]} 26. Kg1 {[%emt 0:00:00]} Rcc8 {[%emt 0:01:00]} 27. Kh1 {[%emt 0:01:00]} Rc7 {[%emt 0:00:00]} 28. Kg1 {[%emt 0:00:00]} Rcc8 {[%emt 0:01:00]} 29. Kh1 {[%emt 0:01:00]} Rc7 {[%emt 0:00:59]} 30. h4 {[%emt 0:06:12]} Rxa3 {[%emt 0:02:28]} *

[Event "WYCC U14 Girls 2019"]
[Site "Mumbai"]
[Date "2019.10.06"]
[Round "6.10"]
[White "Wikar, Martyna"]
[Black "Bhagyashree Patil"]
[Result "1/2-1/2"]
[ECO "C50"]
[WhiteElo "1969"]
[BlackElo "1802"]
[Annotator "NA"]
[PlyCount "138"]
[EventDate "2019.10.02"]
[EventType "swiss"]
[EventCountry "IND"]
[SourceTitle "playchess.com"]
[Source "ChessBase"]
[SourceQuality "1"]
[TimeControl "40/5400+30:1800+30"]

1. e4 {[%emt 0:00:00]} e5 {[%emt 0:00:00]} 2. Nf3 {[%emt 0:00:00]} Nc6 {[%emt 0:00:00]} 3. Bc4 {[%emt 0:00:00]} Be7 {[%emt 0:00:05]} 4. d3 {[%emt 0:00:06]} d6 {[%emt 0:00:40]} 5. c3 {[%emt 0:00:09]} Nf6 {[%emt 0:00:07]} 6. Bb3 {[%emt 0:00:22]} Be6 {[%emt 0:00:42]} 7. Nbd2 {[%emt 0:01:01]} Qd7 {[%emt 0:00:58]} 8. d4 {[%emt 0:02:30]} Bxb3 {[%emt 0:11:01]} 9. Qxb3 {[%emt 0:01:35]} exd4 {[%emt 0:04:19]} 10. cxd4 {[%emt 0:00:55]} O-O {[%emt 0:00:53]} 11. O-O {[%emt 0:03:54]} a5 {[%emt 0:04:39]} 12. Re1 {[%emt 0:05:16]} a4 {[%emt 0:01:08]} 13. Qc3 {[%emt 0:01:26]} b5 {[%emt 0:05:09]} 14. d5 {[%emt 0:01:09]} Na5 {[%emt 0:01:52]} 15. Nd4 {[%emt 0:02:55]} Rfc8 {[%emt 0:05:37]} 16. Qg3 {[%emt 0:07:51]} Bf8 {[%emt 0:07:02]} 17. Nf1 {[%emt 0:04:55]} c5 {[%emt 0:09:43]} 18. Nf5 {[%emt 0:06:19]} Kh8 {[%emt 0:01:20]} 19. Qh4 {[%emt 0:04:01]} Nc4 {[%emt 0:07:46]} 20. N1g3 {[%emt 0:04:44]} Ne5 {[%emt 0:00:46]} 21. Bg5 {[%emt 0:02:28]} Ng8 {[%emt 0:07:48]} 22. f4 {[%emt 0:13:07]} Ng6 {[%emt 0:00:39]} 23. Qg4 {[%emt 0:03:35]} c4 {[%emt 0:07:42]} 24. Kh1 a3 {[%emt 0:02:27]} 25. bxa3 {[%emt 0:03:08]} Rc7 {[%emt 0:00:00]} 26. h4 Rxa3 27. h5 N6e7 28. h6 g6 29. Qe2 b4 30. Qb2+ c3 31. Qxb4 Ra4 32. Nxd6 Nf5 33. Nxf7+ Qxf7 34. Qxa4 Nxg3+ 35. Kh2 Nh5 36. Qd4+ Ngf6 37. Rac1 c2 38. Re2 Bc5 39. Qe5 Re7 40. Qb8+ Re8 41. Qb2 Kg8 42. Bxf6 Nxf6 43. Qxc2 Ng4+ 44. Kg3 Rf8 45. f5 gxf5 46. exf5 Nxh6 47. Qxc5 Nxf5+ 48. Kf2 Nd4+ 49. Ke3 Qf4+ 50. Kd3 Nxe2 51. Kxe2 Re8+ 52. Kd1 Qg4+ 53. Kd2 Qe2+ 54. Kc3 Re3+ 55. Kb4 Qb2+ 56. Ka4 Qxa2+ 57. Kb5 Rb3+ 58. Kc6 Qa6+ 59. Kd7 Rb7+ 60. Kd8 Qa8+ 61. Qc8 Rb8 62. Kd7+ Kg7 63. Qc3+ Kg8 64. Qg3+ Kh8 65. Qe5+ Kg8 66. Qe6+ Kh8 67. Qf6+ Kg8 68. Qg5+ Kh8 69. Qf6+ Kg8 1/2-1/2

[Event "WYCC U14 Girls 2019"]
[Site "Mumbai"]
[Date "2019.10.06"]
[Round "6.11"]
[White "Omonova, Umida"]
[Black "Renganayaki V"]
[Result "*"]
[ECO "B37"]
[WhiteElo "2078"]
[BlackElo "1641"]
[Annotator "NA"]
[PlyCount "39"]
[EventDate "2019.10.02"]
[EventType "swiss"]
[EventCountry "IND"]
[SourceTitle "playchess.com"]
[Source "ChessBase"]
[SourceQuality "1"]
[TimeControl "40/5400+30:1800+30"]

1. e4 c5 2. Nf3 g6 3. d4 cxd4 4. Nxd4 Bg7 5. c4 Nc6 6. Bg5 Nf6 7. Nc3 d6 8. Be2 O-O 9. O-O Bd7 10. Nc2 Rc8 11. f3 a6 12. Rb1 Ne5 13. Na3 Be6 14. Nd5 Bxd5 15. cxd5 Qa5 16. Qb3 Qc7 17. Rbd1 Ned7 18. Rfe1 Nc5 19. Qb4 Nfd7 20. Bf1 *

[Event "WYCC U14 Girls 2019"]
[Site "Mumbai"]
[Date "2019.10.06"]
[Round "6.11"]
[White "Omonova, Umida"]
[Black "Renganayaki V"]
[Result "1/2-1/2"]
[ECO "B38"]
[WhiteElo "2078"]
[BlackElo "1641"]
[Annotator "NA"]
[PlyCount "212"]
[EventDate "2019.10.02"]
[EventType "swiss"]
[EventCountry "IND"]
[SourceTitle "playchess.com"]
[Source "ChessBase"]
[SourceQuality "1"]
[TimeControl "40/5400+30:1800+30"]

1. e4 c5 2. Nf3 g6 3. d4 cxd4 4. Nxd4 Bg7 5. c4 Nc6 6. Be3 Nf6 7. Nc3 d6 8. Be2 O-O 9. O-O Bd7 10. Nc2 Rc8 11. f3 a6 12. Rb1 Ne5 13. Na3 Be6 14. Nd5 Bxd5 15. exd5 Qa5 16. Qb3 Qc7 17. Rbd1 Ned7 18. Rfe1 Nc5 19. Qb4 Nfd7 20. Bf1 Rce8 21. Bd4 Bxd4+ 22. Rxd4 f5 23. Nc2 Ne5 24. Rd2 f4 25. Nd4 Ra8 26. Qc3 a5 27. b3 Qb6 28. Kh1 Rf6 29. a3 Ncd7 30. b4 axb4 31. axb4 Rc8 32. Ne6 Nf8 33. Ng5 Qc7 34. c5 h6 35. Ne4 Rf5 36. Rc2 Nfd7 37. Bb5 Nf6 38. cxd6 Qxc3 39. Rxc3 Rxc3 40. dxe7 Rc8 41. Nxf6+ Rxf6 42. h4 Rb6 43. Rxe5 Rxb5 44. e8=Q+ Rxe8 45. Rxe8+ Kf7 46. Re4 g5 47. hxg5 hxg5 48. d6 Rd5 49. Re7+ Kf6 50. Rxb7 Rxd6 51. Kh2 Rd2 52. Kh3 Rb2 53. b5 Kg6 54. b6 Kh6 55. Rb8 Kg6 56. g3 Rb4 57. gxf4 gxf4 58. Kg4 Kh6 59. Kf5 Kg7 60. Kg5 Kh7 61. Kf5 Kg7 62. Rb7+ Kh6 63. Kf6 Rb3 64. Rb8 Kh7 65. b7 Rb6+ 66. Kg5 Rb4 67. Rf8 Rxb7 68. Rxf4 Kg7 69. Rc4 Rb5+ 70. Kg4 Rb6 71. Rc7+ Kf6 72. f4 Kg6 73. Rc8 Rb4 74. Rc6+ Kf7 75. Kg5 Rb7 76. f5 Kg7 77. Rg6+ Kf7 78. Rh6 Rb5 79. Rh7+ Kg8 80. Ra7 Rb6 81. Rc7 Ra6 82. Re7 Kf8 83. Rd7 Kg8 84. Rd5 Kf7 85. Rb5 Rc6 86. Ra5 Rb6 87. Kf4 Rb7 88. Rc5 Ra7 89. Rc6 Rb7 90. Kg5 Ra7 91. Rf6+ Kg7 92. Rh6 Ra5 93. Rh2 Kg8 94. Re2 Kf8 95. Re6 Kf7 96. Rh6 Kg7 97. Rc6 Ra7 98. Rg6+ Kf7 99. Rh6 Ra5 100. Rh7+ Kg8 101. Rd7 Ra6 102. f6 Ra1 103. Rd6 Rg1+ 104. Kf5 Rf1+ 105. Ke6 Re1+ 106. Kd7 Kf7 1/2-1/2

[Event "WYCC U14 Girls 2019"]
[Site "Mumbai"]
[Date "2019.10.06"]
[Round "6.12"]
[White "Allahverdiyeva, Ayan"]
[Black "Mudodo, Refiloe Hazel"]
[Result "*"]
[ECO "C10"]
[WhiteElo "2160"]
[BlackElo "1657"]
[Annotator "ChessBase"]
[PlyCount "62"]
[EventDate "2019.10.02"]
[EventType "swiss"]
[EventCountry "IND"]
[SourceTitle "playchess.com"]
[Source "ChessBase"]
[SourceQuality "1"]
[TimeControl "40/5400+30:1800+30"]

1. e4 {[%emt 0:00:42]} e6 {[%emt 0:00:40]} 2. d4 {[%emt 0:00:06]} d5 {[%emt 0:00:21]} 3. Nd2 {[%emt 0:00:04]} dxe4 {[%emt 0:00:15]} 4. Nxe4 {[%emt 0:00:05]} Bd7 {[%emt 0:00:29]} 5. Nf3 {[%emt 0:00:18]} Bc6 {[%emt 0:00:36]} 6. Bd3 {[%emt 0:00:10]} Nd7 {[%emt 0:00:27]} 7. O-O {[%emt 0:00:28]} Ngf6 {[%emt 0:00:38]} 8. Neg5 {[%emt 0:00:52]} h6 {[%emt 0:06:51]} 9. Nxe6 {[%emt 0:01:14]} fxe6 {[%emt 0:13:28]} 10. Bg6+ {[%emt 0:00:07]} Ke7 {[%emt 0:00:08]} 11. c4 {[%emt 0:01:35]} Nb6 {[%emt 0:06:08]} 12. Ne5 {[%emt 0:01:32]} Be8 {[%emt 0:00:12]} 13. b3 {[%emt 0:02:32]} Qc8 {[%emt 0:01:59]} 14. Qd3 {[%emt 0:25:10]} Nbd7 {[%emt 0:08:27]} 15. f4 {[%emt 0:04:32]} Nxe5 {[%emt 0:10:28]} 16. fxe5 {[%emt 0:05:34]} Nd7 {[%emt 0:00:15]} 17. Qg3 {[%emt 0:00:17]} Bxg6 {[%emt 0:00:32]} 18. Qxg6 {[%emt 0:00:04]} Qe8 {[%emt 0:00:11]} 19. Bg5+ {[%emt 0:00:18]} hxg5 {[%emt 0:17:08]} 20. Qxg5+ {[%emt 0:00:34]} Nf6 {[%emt 0:00:21]} 21. exf6+ {[%emt 0:00:05]} Kd7 {[%emt 0:00:43]} 22. fxg7 {[%emt 0:00:18]} Rg8 {[%emt 0:01:12]} 23. Qb5+ {[%emt 0:03:39]} Kd6 {[%emt 0:04:33]} 24. gxf8=Q+ {[%emt 0:03:12]} Rxf8 {[%emt 0:00:25]} 25. c5+ {[%emt 0:00:43]} Kd5 {[%emt 0:05:40]} 26. c6+ {[%emt 0:00:06]} Kxd4 {[%emt 0:04:55]} 27. Qc4+ {[%emt 0:01:28] Kd5 Qb5+ Kd4 Qc4+} Ke5 {[%emt 0:00:40]} 28. Qb5+ Kd4 {[%emt 0:00:20]} 29. Qc4+ {[%emt 0:01:00]} Ke5 {[%emt 0:00:40]} 30. Qb5+ Kd4 {[%emt 0:00:20]} 31. Qc4+ {[%emt 0:01:00]} Ke5 {[%emt 0:00:40]} *

[Event "WYCC U14 Girls 2019"]
[Site "Mumbai"]
[Date "2019.10.07"]
[Round "7.1"]
[White "Dhyana Patel"]
[Black "Rakshitta Ravi"]
[Result "0-1"]
[ECO "C60"]
[WhiteElo "1995"]
[BlackElo "2310"]
[Annotator "ChessBase"]
[PlyCount "60"]
[EventDate "2019.10.02"]
[EventType "swiss"]
[EventCountry "IND"]
[SourceTitle "playchess.com"]
[Source "ChessBase"]
[SourceQuality "1"]
[TimeControl "40/5400+30:1800+30"]

1. e4 {[%emt 0:00:00]} e5 {[%emt 0:00:00]} 2. Nf3 {[%emt 0:00:00]} Nc6 {[%emt 0:00:05]} 3. Bb5 {[%emt 0:00:15]} Nge7 {[%emt 0:00:28]} 4. O-O {[%emt 0:04:14]} a6 {[%emt 0:00:16]} 5. Bc4 {[%emt 0:01:36]} g6 {[%emt 0:09:27]} 6. Ng5 {[%emt 0:07:06]} d5 {[%emt 0:00:43]} 7. exd5 {[%emt 0:06:43]} Na5 {[%emt 0:04:31]} 8. d3 {[%emt 0:03:03]} Nxc4 {[%emt 0:03:10]} 9. dxc4 {[%emt 0:00:22]} Bg7 {[%emt 0:00:22]} 10. Nc3 {[%emt 0:08:48]} O-O {[%emt 0:06:28]} 11. Re1 {[%emt 0:02:46]} Re8 {[%emt 0:09:54]} 12. c5 {[%emt 0:05:25]} b6 {[%emt 0:12:50]} 13. cxb6 {[%emt 0:08:20]} cxb6 {[%emt 0:00:52]} 14. d6 {[%emt 0:04:58]} Nf5 {[%emt 0:03:25]} 15. Nge4 {[%emt 0:04:57]} h6 {[%emt 0:13:08]} 16. b3 {[%emt 0:07:46]} Nd4 {[%emt 0:03:52]} 17. Ba3 {[%emt 0:06:11]} f5 {[%emt 0:01:46]} 18. Nd2 {[%emt 0:06:42]} Bb7 {[%emt 0:00:52]} 19. Ne2 {[%emt 0:03:41]} Qg5 {[%emt 0:06:23]} 20. Ng3 {[%emt 0:05:50]} h5 {[%emt 0:00:15]} 21. Bc1 {[%emt 0:03:46]} h4 {[%emt 0:02:41]} 22. Nc4 {[%emt 0:01:24]} Qf6 {[%emt 0:07:37]} 23. Ne2 {[%emt 0:02:06]} b5 {[%emt 0:03:06]} 24. Na5 {[%emt 0:01:34]} Be4 {[%emt 0:02:17]} 25. Nxd4 {[%emt 0:00:16]} exd4 {[%emt 0:00:06]} 26. f3 {[%emt 0:01:24]} Bd5 {[%emt 0:00:20]} 27. Rxe8+ {[%emt 0:01:36]} Rxe8 {[%emt 0:00:05]} 28. Bb2 {[%emt 0:01:47]} Qxd6 {[%emt 0:01:18]} 29. Qd2 {[%emt 0:01:17]} h3 {[%emt 0:01:16]} 30. Rd1 {[%emt 0:00:27]} hxg2 {[%emt 0:03:32]} 0-1

[Event "WYCC U14 Girls 2019"]
[Site "Mumbai"]
[Date "2019.10.07"]
[Round "7.2"]
[White "Nasyrova, Ekaterina"]
[Black "Mungunzul, Bat-Erdene"]
[Result "1-0"]
[ECO "D47"]
[WhiteElo "2137"]
[BlackElo "1912"]
[Annotator "ChessBase"]
[PlyCount "81"]
[EventDate "2019.10.02"]
[EventType "swiss"]
[EventCountry "IND"]
[SourceTitle "playchess.com"]
[Source "ChessBase"]
[SourceQuality "1"]
[TimeControl "40/5400+30:1800+30"]

1. Nf3 {[%emt 0:00:00]} d5 {[%emt 0:00:00]} 2. e3 {[%emt 0:00:00]} Nf6 {[%emt 0:00:00]} 3. c4 {[%emt 0:00:00]} c6 {[%emt 0:00:17]} 4. Nc3 {[%emt 0:00:02]} Nbd7 {[%emt 0:01:11]} 5. d4 {[%emt 0:04:41]} e6 {[%emt 0:00:20]} 6. Bd3 {[%emt 0:00:36]} dxc4 {[%emt 0:00:23]} 7. Bxc4 {[%emt 0:00:06]} b5 {[%emt 0:00:12]} 8. Bd3 {[%emt 0:02:06]} Bb7 {[%emt 0:00:45]} 9. O-O {[%emt 0:01:00]} a6 {[%emt 0:00:19]} 10. e4 {[%emt 0:17:28]} c5 {[%emt 0:00:09]} 11. d5 {[%emt 0:03:23]} c4 {[%emt 0:00:43]} 12. Bc2 {[%emt 0:04:41]} Qc7 {[%emt 0:00:45]} 13. Nd4 {[%emt 0:17:14]} Nc5 {[%emt 0:00:36]} 14. Bg5 {[%emt 0:04:30]} O-O-O {[%emt 0:12:45]} 15. b4 {[%emt 0:04:43]} cxb3 {[%emt 0:12:19]} 16. axb3 {[%emt 0:00:56]} b4 {[%emt 0:12:04]} 17. Na4 {[%emt 0:02:25]} exd5 {[%emt 0:03:17]} 18. e5 {[%emt 0:24:00]} Qxe5 {[%emt 0:03:54]} 19. Qd2 {[%emt 0:01:10]} Bd6 {[%emt 0:22:14]} 20. g3 {[%emt 0:00:58]} Nce4 {[%emt 0:07:32]} 21. Bxe4 {[%emt 0:00:19]} dxe4 {[%emt 0:00:20]} 22. Bf4 {[%emt 0:01:41]} Qe8 {[%emt 0:11:30]} 23. Rfc1+ {[%emt 0:00:58]} Kb8 {[%emt 0:00:22]} 24. Qxb4 {[%emt 0:00:32]} Bxf4 {[%emt 0:03:48]} 25. Nc6+ {[%emt 0:00:41]} Qxc6 {[%emt 0:00:12]} 26. Rxc6 {[%emt 0:00:13]} Bd2 {[%emt 0:00:32]} 27. Qc4 {[%emt 0:00:46]} e3 {[%emt 0:02:30]} 28. Rb6 {[%emt 0:01:59]} exf2+ {[%emt 0:00:25]} 29. Kxf2 {[%emt 0:00:39]} Rc8 {[%emt 0:02:00]} 30. Qd4 {[%emt 0:05:24]} Rc2 {[%emt 0:02:11]} 31. Rxb7+ {[%emt 0:00:39]} Kxb7 {[%emt 0:00:08]} 32. Qb6+ {[%emt 0:00:05]} Kc8 {[%emt 0:00:35]} 33. Qxa6+ {[%emt 0:00:06]} Kc7 {[%emt 0:00:12]} 34. Qa7+ {[%emt 0:00:12]} Kd8 {[%emt 0:00:42]} 35. Rd1 {[%emt 0:01:54]} Ng4+ {[%emt 0:01:25]} 36. Kg2 {[%emt 0:00:13]} Ke8 {[%emt 0:00:44]} 37. Qa8+ {[%emt 0:00:42]} Kd7 {[%emt 0:00:10]} 38. Qe4 {[%emt 0:00:49]} h5 {[%emt 0:00:31]} 39. Nb6+ {[%emt 0:00:36]} Kd6 {[%emt 0:00:35]} 40. Nc4+ {[%emt 0:00:16]} Rxc4 {[%emt 0:00:22]} 41. Rxd2+ {[%emt 0:30:08] Kd5} 1-0